fUSD/lending_fUSD_20240425
["ID","MTS","AMOUNT","RATE_DAILY","PERIOD"]
[323533378,1714074644102,-500.0,0.00011232,2]
[323533380,1714074644112,-500.0,0.00011232,2]
[323533382,1714074644122,-500.0,0.00011232,2]
[323533384,1714074644131,-500.0,0.00011232,2]
[323533386,1714074644140,-500.0,0.00011232,2]
[323533388,1714074644150,-500.0,0.00011232,2]
[323533390,1714074644159,-519.48,0.00011232,2]
[323533392,1714074644168,-500.0,0.00011232,2]
[323533394,1714074644178,-500.0,0.00011232,2]
[323533396,1714074644187,-500.0,0.00011232,2]
[323533398,1714074644196,-500.0,0.00011232,2]
[323533400,1714074644205,-500.0,0.00011232,2]
[323533402,1714074644214,-500.0,0.00011232,2]
[323533405,1714074644223,-500.0,0.00011232,2]
[323533407,1714074644233,-500.0,0.00011232,2]
[323533409,1714074644242,-527.11,0.00011232,2]
[323533411,1714074644252,-625.88,0.00011232,2]
[323533413,1714074644262,-500.0,0.00011232,2]
[323533415,1714074644273,-500.0,0.00011232,2]
[323533417,1714074644282,-260.44,0.00011232,2]
[323533419,1714074644292,-500.0,0.00011232,2]
[323533421,1714074644301,-500.0,0.00011232,2]
[323533423,1714074644310,-774.94,0.00011232,2]
[323533425,1714074644319,-500.0,0.00011232,2]
[323533427,1714074644328,-527.28,0.00011232,2]
[323533429,1714074644336,-666.65,0.00011232,2]
[323533431,1714074644345,-500.0,0.00011232,2]
[323533433,1714074644355,-500.0,0.00011232,2]
[323533435,1714074644364,-500.0,0.00011232,2]
[323533437,1714074644373,-500.0,0.00011232,2]
[323533439,1714074644382,-500.0,0.00011232,2]
[323533441,1714074644391,-500.0,0.00011232,2]
[323533443,1714074644401,-500.0,0.00011232,2]
[323533445,1714074644411,-500.0,0.00011232,2]
[323533447,1714074644420,-500.0,0.00011232,2]
[323533449,1714074644429,-500.0,0.00011232,2]
[323533451,1714074644438,-500.0,0.00011232,2]
[323533453,1714074644448,-150.0,0.00011232,2]
[323533455,1714074644457,-500.0,0.00011232,2]
[323533457,1714074644466,-500.0,0.00011232,2]
[323533459,1714074644476,-500.0,0.00011232,2]
[323533461,1714074644486,-500.0,0.00011232,2]
[323533463,1714074644495,-531.9,0.00011232,2]
[323533465,1714074644505,-500.0,0.00011232,2]
[323533467,1714074644514,-500.0,0.00011232,2]
[323533469,1714074644525,-500.0,0.00011232,2]
[323533471,1714074644535,-500.0,0.00011232,2]
[323533473,1714074644546,-500.0,0.00011232,2]
[323533475,1714074644556,-500.0,0.00011232,2]
[323533478,1714074644566,-500.0,0.00011232,2]
[323533480,1714074644576,-500.0,0.00011232,2]
[323533482,1714074644585,-500.0,0.00011232,2]
[323533484,1714074644594,-500.0,0.00011232,2]
[323533485,1714074644603,-500.0,0.00011232,2]
[323533488,1714074644613,-537.47,0.00011232,2]
[323533490,1714074644625,-500.0,0.00011232,2]
[323533491,1714074644634,-500.0,0.00011232,2]
[323533494,1714074644643,-500.0,0.00011232,2]
[323533496,1714074644653,-500.0,0.00011232,2]
[323533497,1714074644662,-543.26,0.00011232,2]
[323533500,1714074644672,-500.0,0.00011232,2]
[323533501,1714074644683,-500.0,0.00011232,2]
[323533503,1714074644692,-500.0,0.00011232,2]
[323533506,1714074644702,-500.0,0.00011232,2]
[323533508,1714074644711,-500.0,0.00011232,2]
[323533510,1714074644720,-500.0,0.00011232,2]
[323533512,1714074644730,-500.0,0.00011232,2]
[323533514,1714074644740,-500.0,0.00011232,2]
[323533516,1714074644749,-500.0,0.00011232,2]
[323533518,1714074644759,-500.0,0.00011232,2]
[323533520,1714074644768,-500.0,0.00011232,2]
[323533522,1714074644777,-500.0,0.00011232,2]
[323533524,1714074644787,-500.0,0.00011232,2]
[323533526,1714074644796,-500.0,0.00011232,2]
[323533528,1714074644805,-818.3,0.00011232,2]
[323533530,1714074644815,-500.0,0.00011232,2]
[323533532,1714074644824,-500.0,0.00011232,2]
[323533534,1714074644833,-500.0,0.00011232,2]
[323533536,1714074644843,-500.0,0.00011232,2]
[323533538,1714074644852,-500.0,0.00011232,2]
[323533540,1714074644861,-500.0,0.00011232,2]
[323533542,1714074644870,-500.0,0.00011232,2]
[323533544,1714074644879,-946.3,0.00011232,2]
[323533546,1714074644889,-500.0,0.00011232,2]
[323533548,1714074644899,-500.0,0.00011232,2]
[323533550,1714074644908,-500.0,0.00011232,2]
[323533552,1714074644917,-15279.2,0.00011232,2]
[323533554,1714074644926,-500.0,0.00011232,2]
[323533556,1714074644935,-500.0,0.00011232,2]
[323533558,1714074644949,-500.0,0.00011232,2]
[323533560,1714074644958,-1650.95,0.00011232,2]
[323533562,1714074644967,-500.0,0.00011232,2]
[323533564,1714074644976,-1202.46,0.00011232,2]
[323533566,1714074644985,-855.91,0.00011232,2]
[323533568,1714074644995,-500.0,0.00011232,2]
[323533570,1714074645005,-518.42855253,0.00011232,2]
[323533572,1714074645015,-500.0,0.00011232,2]
[323533574,1714074645024,-500.0,0.00011232,2]
[323533576,1714074645033,-500.0,0.00011232,2]
[323533578,1714074645042,-943.64,0.00011232,2]
[323533580,1714074645051,-500.0,0.00011232,2]
[323533582,1714074645060,-500.0,0.00011232,2]
[323533584,1714074645069,-1245.81,0.00011232,2]
[323533586,1714074645078,-500.0,0.00011232,2]
[323533588,1714074645088,-500.0,0.00011232,2]
[323533590,1714074645097,-500.0,0.00011232,2]
[323533592,1714074645106,-500.0,0.00011232,2]
[323533594,1714074645115,-500.0,0.00011232,2]
[323533596,1714074645124,-500.0,0.00011232,2]
[323533598,1714074645134,-603.65,0.00011232,2]
[323533601,1714074645143,-1036.16,0.00011232,2]
[323533603,1714074645152,-500.0,0.00011232,2]
[323533605,1714074645162,-500.0,0.00011232,2]
[323533607,1714074645171,-500.0,0.00011232,2]
[323533609,1714074645180,-500.0,0.00011232,2]
[323533611,1714074645190,-833.55,0.00011232,2]
[323533613,1714074645199,-500.0,0.00011232,2]
[323533615,1714074645209,-614.42,0.00011232,2]
[323533617,1714074645218,-953.13,0.00011232,2]
[323533619,1714074645227,-500.0,0.00011232,2]
[323533621,1714074645236,-500.0,0.00011232,2]
[323533623,1714074645245,-500.0,0.00011232,2]
[323533625,1714074645254,-500.0,0.00011232,2]
[323533627,1714074645263,-500.0,0.00011232,2]
[323533629,1714074645272,-500.0,0.00011232,2]
[323533631,1714074645281,-500.0,0.00011232,2]
[323533633,1714074645290,-500.0,0.00011232,2]
[323533635,1714074645299,-500.0,0.00011232,2]
[323533637,1714074645309,-500.0,0.00011232,2]
[323533639,1714074645318,-18304.29,0.00011232,2]
[323533641,1714074645327,-1290.76,0.00011232,2]
[323533643,1714074645337,-505.50301352,0.00011232,2]
[323533645,1714074645346,-500.0,0.00011232,2]
[323533647,1714074645355,-500.0,0.00011232,2]
[323533649,1714074645364,-643.28,0.00011232,2]
[323533651,1714074645374,-2364.7,0.00011232,2]
[323533659,1714074645443,-500.0,0.00011232,2]
[323533661,1714074645454,-714.21,0.00011232,2]
[323533663,1714074645464,-513.18,0.00011232,2]
[323533666,1714074645473,-2113.44,0.00011232,2]
[323533668,1714074645482,-500.0,0.00011232,2]
[323533670,1714074645491,-718.38,0.00011232,2]
[323533672,1714074645500,-500.0,0.00011232,2]
[323533674,1714074645509,-502.25,0.00011232,2]
[323533675,1714074645518,-575.14,0.00011232,2]
[323533678,1714074645527,-500.0,0.00011232,2]
[323533680,1714074645537,-500.0,0.00011232,2]
[323533682,1714074645546,-645.75,0.00011232,2]
[323533684,1714074645555,-682.92,0.00011232,2]
[323533686,1714074645565,-974.95,0.00011232,2]
[323533688,1714074645574,-817.57,0.00011232,2]
[323533690,1714074645583,-934.73,0.00011232,2]
[323533692,1714074645592,-756.92,0.00011232,2]
[323533694,1714074645601,-611.66,0.00011232,2]
[323533696,1714074645610,-500.0,0.00011232,2]
[323533698,1714074645619,-1202.42,0.00011232,2]
[323533700,1714074645630,-500.0,0.00011232,2]
[323533702,1714074645639,-1017.04,0.00011232,2]
[323533703,1714074645648,-812.14,0.00011232,2]
[323533705,1714074645657,-500.0,0.00011232,2]
[323533707,1714074645668,-500.0,0.00011232,2]
[323533709,1714074645677,-660.26,0.00011232,2]
[323533711,1714074645686,-500.0,0.00011232,2]
[323533713,1714074645695,-500.0,0.00011232,2]
[323533715,1714074645705,-500.0,0.00011232,2]
[323533717,1714074645715,-559.6,0.00011232,2]
[323533719,1714074645724,-500.0,0.00011232,2]
[323533720,1714074645734,-1681.08,0.00011232,2]
[323533721,1714074645743,-599.87,0.00011232,2]
[323533722,1714074645752,-540.2,0.00011232,2]
[323533723,1714074645762,-765.31,0.00011232,2]
[323533724,1714074645772,-2226.34,0.00011232,2]
[323533725,1714074645781,-426.88384808,0.00011232,2]
[323533726,1714074645790,-500.0,0.00011232,2]
[323533727,1714074645799,-763.81,0.00011232,2]
[323533728,1714074645809,-500.0,0.00011232,2]
[323533730,1714074645818,-500.0,0.00011232,2]
[323533731,1714074645827,-500.0,0.00011232,2]
[323533732,1714074645836,-2255.6,0.00011232,2]
[323533734,1714074645846,-1208.06,0.00011232,2]
[323533736,1714074645855,-500.0,0.00011232,2]
[323533738,1714074645864,-645.73,0.00011232,2]
[323533740,1714074645874,-500.0,0.00011232,2]
[323533742,1714074645883,-500.0,0.00011232,2]
[323533744,1714074645892,-500.0,0.00011232,2]
[323533746,1714074645902,-562.17,0.00011232,2]
[323533748,1714074645911,-535.56,0.00011232,2]
[323533750,1714074645920,-4994.51,0.00011232,2]
[323533753,1714074645932,-521.37,0.00011232,2]
[323533755,1714074645941,-500.0,0.00011232,2]
[323533757,1714074645952,-667.19,0.00011232,2]
[323533759,1714074645961,-631.04,0.00011232,2]
[323533761,1714074645970,-500.0,0.00011232,2]
[323533762,1714074645979,-917.34,0.00011232,2]
[323533764,1714074645988,-500.0,0.00011232,2]
[323533766,1714074645997,-608.0,0.00011232,2]
[323533768,1714074646007,-500.0,0.00011232,2]
[323533771,1714074646018,-931.88,0.00011232,2]
[323533773,1714074646027,-500.0,0.00011232,2]
[323533775,1714074646036,-500.0,0.00011232,2]
[323533777,1714074646046,-2970.08,0.00011232,2]
[323533779,1714074646055,-2768.31,0.00011232,2]
[323533781,1714074646064,-500.0,0.00011232,2]
[323533782,1714074646073,-500.0,0.00011232,2]
[323533785,1714074646083,-500.0,0.00011232,2]
[323533787,1714074646092,-1714.02,0.00011232,2]
[323533789,1714074646102,-4134.1,0.00011232,2]
[323533791,1714074646113,-500.0,0.00011232,2]
[323533793,1714074646123,-1103.14,0.00011232,2]
[323533795,1714074646133,-804.29,0.00011232,2]
[323533797,1714074646143,-1260.94,0.00011232,2]
[323533799,1714074646153,-1426.68,0.00011232,2]
[323533801,1714074646162,-2035.64,0.00011232,2]
[323533803,1714074646172,-1651.88,0.00011232,2]
[323533805,1714074646183,-283.39356236,0.00011232,2]
[323533807,1714074646192,-500.0,0.00011232,2]
[323533810,1714074646202,-500.0,0.00011232,2]
[323533812,1714074646213,-500.0,0.00011232,2]
[323533814,1714074646223,-500.0,0.00011232,2]
[323533816,1714074646233,-500.0,0.00011232,2]
[323533818,1714074646242,-540.66,0.00011232,2]
[323533820,1714074646252,-4152.4,0.00011232,2]
[323533822,1714074646263,-536.15,0.00011232,2]
[323533824,1714074646273,-1197.75,0.00011232,2]
[323533827,1714074646283,-500.0,0.00011232,2]
[323533829,1714074646292,-500.0,0.00011232,2]
[323533831,1714074646302,-701.42,0.00011232,2]
[323533833,1714074646312,-500.0,0.00011232,2]
[323533835,1714074646322,-500.0,0.00011232,2]
[323533837,1714074646332,-500.0,0.00011232,2]
[323533839,1714074646342,-1060.6,0.00011232,2]
[323533841,1714074646352,-2816.07,0.00011232,2]
[323533843,1714074646361,-854.15,0.00011232,2]
[323533845,1714074646371,-500.0,0.00011232,2]
[323533847,1714074646381,-2115.01,0.00011232,2]
[323533850,1714074646392,-500.0,0.00011232,2]
[323533852,1714074646402,-500.0,0.00011232,2]
[323533854,1714074646411,-570.27,0.00011232,2]
[323533856,1714074646421,-500.0,0.00011232,2]
[323533858,1714074646432,-521.9,0.00011232,2]
[323533860,1714074646442,-6197.32,0.00011232,2]
[323533862,1714074646452,-613.43,0.00011232,2]
[323533864,1714074646462,-714.7,0.00011232,2]
[323533867,1714074646473,-500.0,0.00011232,2]
[323533869,1714074646483,-880.86,0.00011232,2]
[323533871,1714074646493,-849.15,0.00011281,2]
[323533873,1714074646503,-1092.76,0.00011281,2]
[323533875,1714074646513,-25812.88,0.00011281,2]
[323533877,1714074646523,-830.6414329,0.00011281,2]
[323533889,1714074646624,-690.23,0.00010958,2]
[323533891,1714074646635,-368.39905494,0.00011281,2]
[323533893,1714074646647,-4985.58951216,0.00011281,2]
[323533895,1714074646657,-27774.01,0.00011281,2]
[323533898,1714074646667,-19999.99,0.00011281,2]
[323533899,1714074646678,-345.07,0.00011368,2]
[323533900,1714074646688,-150.0,0.0001137,2]
[323533901,1714074646699,-150.0,0.0001137,2]
[323533902,1714074646710,-150.0,0.0001137,2]
[323533903,1714074646720,-447.29988223,0.00011437,2]
[323533974,1714074647608,-333.81892786,0.00010958,2]
[323533977,1714074647624,-229.87107214,0.00010958,2]
[323533979,1714074647636,-276.23555269,0.00010958,2]
[323533983,1714074647664,-223.76444731,0.00010958,2]
[323533985,1714074647675,-690.23,0.00011232,2]
[323533988,1714074647688,-49.15011777,0.00011437,2]
[323533990,1714074647699,-839.41,0.00011505,2]
[323533992,1714074647711,-13.92971068,0.00011505,2]
[323533994,1714074647725,-486.07028932,0.00011505,2]
[323533997,1714074647737,-650.3,0.00011505,2]
[323533999,1714074647748,-684.25,0.00011505,2]
[323534001,1714074647759,-826.58,0.00011505,2]
[323534003,1714074647771,-500.0,0.00011505,2]
[323534006,1714074647782,-1140.39,0.00011505,2]
[323534008,1714074647794,-509.88,0.00011505,2]
[323534010,1714074647805,-500.0,0.00011505,2]
[323534012,1714074647816,-1965.97,0.00011505,2]
[323534015,1714074647828,-1307.91,0.00011505,2]
[323534017,1714074647840,-3095.09,0.00011505,2]
[323534019,1714074647851,-500.0,0.00011505,2]
[323534021,1714074647862,-511.48,0.00011505,2]
[323534023,1714074647874,-1086.95,0.00011505,2]
[323534026,1714074647885,-1055.63,0.00011505,2]
[323534028,1714074647897,-766.94,0.00011505,2]
[323534030,1714074647908,-500.0,0.00011505,2]
[323534033,1714074647919,-505.78,0.00011505,2]
[323534035,1714074647931,-1251.69,0.00011505,2]
[323534037,1714074647943,-500.0,0.00011505,2]
[323534039,1714074647955,-580.97,0.00011505,2]
[323534042,1714074647966,-3441.84,0.00011505,2]
[323534044,1714074647977,-1527.63,0.00011505,2]
[323534046,1714074647990,-500.0,0.00011506,2]
[323534049,1714074648003,-220.32,0.00011506,2]
[323534051,1714074648017,-382.31,0.00011506,2]
[323534053,1714074648030,-372.81304359,0.00011506,2]
[323534054,1714074648049,-127.18695641,0.00011506,2]
[323534055,1714074648060,-241.27664402,0.00011506,2]
[323534056,1714074648074,-258.72335598,0.00011506,2]
[323534057,1714074648085,-500.0,0.00011506,2]
[323534058,1714074648096,-500.0,0.00011506,2]
[323534059,1714074648108,-500.0,0.00011506,2]
[323534060,1714074648120,-136.56419074,0.00011506,2]
[323534064,1714074648159,-363.43580926,0.00011506,2]
[323534066,1714074648170,-500.0,0.00011506,2]
[323534068,1714074648182,-466.25,0.00011506,2]
[323534071,1714074648194,-574.04,0.00011506,2]
[323534073,1714074648205,-500.0,0.00011506,2]
[323534075,1714074648217,-215.23393229,0.00011506,2]
[323534078,1714074648229,-384.07,0.00011506,2]
[323534080,1714074648240,-612.91674534,0.00011506,2]
[323534082,1714074648251,-284.62,0.00011506,2]
[323534084,1714074648263,-593.11,0.00011506,2]
[323534087,1714074648275,-500.0,0.00011506,2]
[323534089,1714074648286,-500.0,0.00011506,2]
[323534091,1714074648296,-500.0,0.00011506,2]
[323534093,1714074648306,-619.89,0.00011506,2]
[323534095,1714074648316,-500.0,0.00011506,2]
[323534097,1714074648325,-751.56,0.00011506,2]
[323534099,1714074648334,-645.0,0.00011506,2]
[323534101,1714074648343,-500.0,0.00011506,2]
[323534103,1714074648352,-500.0,0.00011506,2]
[323534105,1714074648361,-572.69,0.00011506,2]
[323534107,1714074648371,-500.0,0.00011506,2]
[323534109,1714074648380,-500.0,0.00011506,2]
[323534111,1714074648389,-511.0,0.00011506,2]
[323534113,1714074648398,-500.0,0.00011506,2]
[323534115,1714074648407,-262.3,0.00011506,2]
[323534117,1714074648416,-54.04190836,0.00011506,2]
[323534119,1714074648428,-445.95809164,0.00011506,2]
[323534121,1714074648437,-500.0,0.00011506,2]
[323534123,1714074648446,-500.0,0.00011506,2]
[323534125,1714074648455,-500.0,0.00011506,2]
[323534128,1714074648465,-500.0,0.00011506,2]
[323534130,1714074648474,-500.0,0.00011506,2]
[323534131,1714074648483,-500.0,0.00011506,2]
[323534133,1714074648494,-767.55,0.00011506,2]
[323534136,1714074648504,-500.0,0.00011506,2]
[323534137,1714074648512,-500.0,0.00011506,2]
[323534139,1714074648522,-619.56,0.00011506,2]
[323534142,1714074648531,-500.0,0.00011506,2]
[323534144,1714074648541,-500.0,0.00011506,2]
[323534145,1714074648550,-598.55,0.00011506,2]
[323534146,1714074648558,-500.0,0.00011506,2]
[323534147,1714074648567,-500.0,0.00011506,2]
[323534148,1714074648576,-500.0,0.00011506,2]
[323534149,1714074648910,-500.0,0.00011506,2]
[323534150,1714074648937,-606.31,0.00011506,2]
[323534151,1714074648957,-500.0,0.00011506,2]
[323534152,1714074648973,-475.67,0.00011506,2]
[323534153,1714074648982,-500.0,0.00011506,2]
[323534154,1714074648992,-364.43,0.00011506,2]
[323534155,1714074649001,-500.0,0.00011506,2]
[323534156,1714074649010,-500.0,0.00011506,2]
[323534157,1714074649019,-519.48,0.00011506,2]
[323534158,1714074649029,-500.0,0.00011506,2]
[323534159,1714074649038,-500.0,0.00011506,2]
[323534160,1714074649047,-500.0,0.00011506,2]
[323534161,1714074649056,-500.0,0.00011506,2]
[323534162,1714074649065,-405.84,0.00011506,2]
[323534163,1714074649074,-500.0,0.00011506,2]
[323534164,1714074649083,-527.11,0.00011506,2]
[323534165,1714074649094,-472.75,0.00011506,2]
[323534166,1714074649103,-500.0,0.00011506,2]
[323534167,1714074649113,-625.88,0.00011506,2]
[323534168,1714074649122,-500.0,0.00011506,2]
[323534169,1714074649131,-500.0,0.00011506,2]
[323534170,1714074649140,-774.94,0.00011506,2]
[323534171,1714074649149,-666.65,0.00011506,2]
[323534172,1714074649158,-316.49,0.00011506,2]
[323534173,1714074649167,-500.0,0.00011506,2]
[323534174,1714074649176,-500.0,0.00011506,2]
[323534175,1714074649187,-500.0,0.00011506,2]
[323534176,1714074649196,-265.07507685,0.00011506,2]
[323534177,1714074649205,-500.0,0.00011506,2]
[323534178,1714074649214,-500.0,0.00011506,2]
[323534179,1714074649223,-500.0,0.00011506,2]
[323534180,1714074649232,-500.0,0.00011506,2]
[323534181,1714074649241,-500.0,0.00011506,2]
[323534182,1714074649251,-500.0,0.00011506,2]
[323534183,1714074649262,-427.52,0.00011506,2]
[323534184,1714074649272,-500.0,0.00011506,2]
[323534185,1714074649281,-500.0,0.00011506,2]
[323534186,1714074649290,-500.0,0.00011506,2]
[323534187,1714074649301,-500.0,0.00011506,2]
[323534188,1714074649310,-397.45,0.00011506,2]
[323534189,1714074649321,-500.0,0.00011506,2]
[323534190,1714074649331,-389.16,0.00011506,2]
[323534191,1714074649341,-500.0,0.00011506,2]
[323534192,1714074649350,-500.0,0.00011506,2]
[323534193,1714074649359,-537.47,0.00011506,2]
[323534194,1714074649369,-500.0,0.00011506,2]
[323534195,1714074649378,-500.0,0.00011506,2]
[323534196,1714074649387,-543.26,0.00011506,2]
[323534197,1714074649396,-500.0,0.00011506,2]
[323534198,1714074649405,-500.0,0.00011506,2]
[323534199,1714074649414,-240.4,0.00011506,2]
[323534200,1714074649423,-500.0,0.00011506,2]
[323534201,1714074649433,-500.0,0.00011506,2]
[323534202,1714074649442,-500.0,0.00011506,2]
[323534203,1714074649451,-498.54,0.00011506,2]
[323534204,1714074649459,-273.09,0.00011506,2]
[323534205,1714074649468,-535.21,0.00011506,2]
[323534206,1714074649477,-500.0,0.00011506,2]
[323534207,1714074649486,-500.0,0.00011506,2]
[323534208,1714074649495,-818.3,0.00011506,2]
[323534209,1714074649504,-383.33,0.00011506,2]
[323534210,1714074649514,-500.0,0.00011506,2]
[323534211,1714074649523,-500.0,0.00011506,2]
[323534212,1714074649532,-500.0,0.00011506,2]
[323534213,1714074649542,-500.0,0.00011506,2]
[323534214,1714074649551,-500.0,0.00011506,2]
[323534215,1714074649560,-946.3,0.00011506,2]
[323534216,1714074649569,-500.0,0.00011506,2]
[323534217,1714074649579,-500.0,0.00011506,2]
[323534218,1714074649588,-500.0,0.00011506,2]
[323534219,1714074649597,-15279.2,0.00011506,2]
[323534220,1714074649606,-500.0,0.00011506,2]
[323534221,1714074649616,-223.8,0.00011506,2]
[323534222,1714074649627,-1650.95,0.00011506,2]
[323534223,1714074649636,-1202.46,0.00011506,2]
[323534224,1714074649646,-855.91,0.00011506,2]
[323534225,1714074649656,-500.0,0.00011506,2]
[323534226,1714074649667,-500.0,0.00011506,2]
[323534227,1714074649676,-943.64,0.00011506,2]
[323534228,1714074649687,-500.0,0.00011506,2]
[323534229,1714074649696,-275.59,0.00011506,2]
[323534230,1714074649706,-1245.81,0.00011506,2]
[323534231,1714074649716,-500.0,0.00011506,2]
[323534232,1714074649725,-645.02,0.00011506,2]
[323534233,1714074649734,-500.0,0.00011506,2]
[323534234,1714074649745,-500.0,0.00011506,2]
[323534235,1714074649754,-500.0,0.00011506,2]
[323534236,1714074649763,-500.0,0.00011506,2]
[323534237,1714074649773,-603.65,0.00011506,2]
[323534238,1714074649782,-1036.16,0.00011506,2]
[323534239,1714074649791,-500.0,0.00011506,2]
[323534240,1714074649801,-500.0,0.00011506,2]
[323534241,1714074649811,-500.0,0.00011506,2]
[323534242,1714074649820,-833.55,0.00011506,2]
[323534243,1714074649830,-500.0,0.00011506,2]
[323534244,1714074649840,-614.42,0.00011506,2]
[323534245,1714074649850,-953.13,0.00011506,2]
[323534246,1714074649859,-500.0,0.00011506,2]
[323534247,1714074649870,-500.0,0.00011506,2]
[323534248,1714074649879,-500.0,0.00011506,2]
[323534249,1714074649888,-500.0,0.00011506,2]
[323534250,1714074649899,-500.0,0.00011506,2]
[323534251,1714074649909,-500.0,0.00011506,2]
[323534252,1714074649918,-500.0,0.00011506,2]
[323534253,1714074649930,-500.0,0.00011506,2]
[323534254,1714074649940,-500.0,0.00011506,2]
[323534255,1714074649949,-407.54,0.00011506,2]
[323534256,1714074649960,-18304.29,0.00011506,2]
[323534257,1714074649969,-1290.76,0.00011506,2]
[323534258,1714074649978,-500.0,0.00011506,2]
[323534259,1714074649987,-643.28,0.00011506,2]
[323534260,1714074649998,-2364.7,0.00011506,2]
[323534261,1714074650008,-500.0,0.00011506,2]
[323534262,1714074650017,-513.18,0.00011506,2]
[323534263,1714074650026,-714.21,0.00011506,2]
[323534264,1714074650035,-2113.44,0.00011506,2]
[323534265,1714074650045,-500.0,0.00011506,2]
[323534266,1714074650055,-718.38,0.00011506,2]
[323534267,1714074650065,-500.0,0.00011506,2]
[323534268,1714074650075,-502.25,0.00011506,2]
[323534269,1714074650085,-575.14,0.00011506,2]
[323534270,1714074650094,-500.0,0.00011506,2]
[323534271,1714074650104,-281.26,0.00011506,2]
[323534272,1714074650114,-645.75,0.00011506,2]
[323534273,1714074650125,-682.92,0.00011506,2]
[323534274,1714074650134,-974.95,0.00011506,2]
[323534275,1714074650143,-817.57,0.00011506,2]
[323534276,1714074650153,-934.73,0.00011506,2]
[323534277,1714074650162,-756.92,0.00011506,2]
[323534278,1714074650172,-611.66,0.00011506,2]
[323534279,1714074650182,-500.0,0.00011506,2]
[323534280,1714074650191,-1202.42,0.00011506,2]
[323534281,1714074650201,-500.0,0.00011506,2]
[323534282,1714074650210,-1017.04,0.00011506,2]
[323534283,1714074650220,-812.14,0.00011506,2]
[323534284,1714074650229,-500.0,0.00011506,2]
[323534285,1714074650238,-500.0,0.00011506,2]
[323534286,1714074650247,-660.26,0.00011506,2]
[323534287,1714074650256,-500.0,0.00011506,2]
[323534288,1714074650265,-500.0,0.00011506,2]
[323534289,1714074650274,-500.0,0.00011506,2]
[323534290,1714074650282,-559.6,0.00011506,2]
[323534291,1714074650292,-359.51,0.00011506,2]
[323534292,1714074650300,-1681.08,0.00011506,2]
[323534293,1714074650310,-599.87,0.00011506,2]
[323534294,1714074650319,-540.2,0.00011506,2]
[323534295,1714074650328,-765.31,0.00011506,2]
[323534296,1714074650337,-2226.34,0.00011506,2]
[323534297,1714074650346,-500.0,0.00011506,2]
[323534298,1714074650356,-763.81,0.00011506,2]
[323534299,1714074650365,-232.31,0.00011506,2]
[323534300,1714074650374,-500.0,0.00011506,2]
[323534301,1714074650383,-500.0,0.00011506,2]
[323534302,1714074650393,-2255.6,0.00011506,2]
[323534303,1714074650402,-1208.06,0.00011506,2]
[323534304,1714074650411,-500.0,0.00011506,2]